lending/lending_fUSD_20251016
["ID","MTS","AMOUNT","RATE_DAILY","PERIOD"]
[391500531,1760622680415,-500.0,0.0002,2]
[391500532,1760622680426,-500.0,0.0002,2]
[391500533,1760622680435,-1063.4,0.0002,2]
[391500534,1760622680448,-660.71,0.0002,2]
[391500535,1760622680458,-500.0,0.0002,2]
[391500536,1760622680468,-500.0,0.0002,2]
[391500537,1760622680478,-1048.14,0.0002,2]
[391500538,1760622680488,-500.0,0.0002,2]
[391500539,1760622680498,-689.6,0.0002,2]
[391500540,1760622680508,-1363.52,0.0002,2]
[391500541,1760622680518,-1363.52,0.0002,2]
[391500542,1760622680527,-804.28,0.0002,2]
[391500543,1760622680537,-624.28,0.0002,2]
[391500544,1760622680547,-1197.49,0.0002,2]
[391500545,1760622680557,-702.02,0.0002,2]
[391500546,1760622680566,-977.61,0.0002,2]
[391500547,1760622680576,-3586.28,0.0002,2]
[391500548,1760622680586,-646.49,0.0002,2]
[391500549,1760622680596,-897.14,0.0002,2]
[391500550,1760622680605,-500.0,0.0002,2]
[391500551,1760622680615,-500.0,0.0002,2]
[391500552,1760622680626,-532.74,0.0002,2]
[391500553,1760622680635,-532.74,0.0002,2]
[391500554,1760622680645,-895.4,0.0002,2]
[391500555,1760622680655,-500.0,0.0002,2]
[391500556,1760622680665,-500.0,0.0002,2]
[391500557,1760622680675,-207.03253398,0.0002,2]
[391500558,1760622680685,-500.0,0.0002,2]
[391500559,1760622680700,-2277.48,0.0002,2]
[391500560,1760622680710,-952.68,0.0002,2]
[391500561,1760622680719,-2936.3,0.0002,2]
[391500562,1760622680730,-868.59,0.0002,2]
[391500563,1760622680740,-500.0,0.0002,2]
[391500564,1760622680750,-672.47,0.0002,2]
[391500565,1760622680760,-655.91,0.0002,2]
[391500566,1760622680770,-500.0,0.0002,2]
[391500567,1760622680780,-500.0,0.0002,2]
[391500568,1760622680789,-417.14967902,0.0002,2]
[391500569,1760622680799,-1240.38,0.0002,2]
[391500570,1760622680809,-1100.81,0.0002,2]
[391500571,1760622680819,-1090.06,0.0002,2]
[391500572,1760622680830,-1443.66,0.0002,2]
[391500573,1760622680840,-724.31,0.0002,2]
[391500574,1760622680850,-1139.23,0.0002,2]
[391500575,1760622680859,-683.67,0.0002,2]
[391500576,1760622680869,-1341.6,0.0002,2]
[391500577,1760622680879,-517.79,0.0002,2]
[391500578,1760622680888,-1781.74,0.0002,2]
[391500579,1760622680898,-500.0,0.0002,2]
[391500580,1760622680908,-2246.33,0.0002,2]
[391500581,1760622680918,-524.96,0.0002,2]
[391500582,1760622680929,-514.05,0.0002,2]
[391500583,1760622680940,-641.67,0.0002,2]
[391500584,1760622680953,-500.0,0.0002,2]
[391500585,1760622680963,-500.0,0.0002,2]
[391500586,1760622680974,-554.81,0.0002,2]
[391500587,1760622680984,-500.0,0.0002,2]
[391500588,1760622680995,-557.88,0.0002,2]
[391500589,1760622681005,-1149.22,0.0002,2]
[391500590,1760622681015,-500.0,0.0002,2]
[391500591,1760622681024,-500.0,0.0002,2]
[391500592,1760622681034,-500.0,0.0002,2]
[391500593,1760622681044,-235.01,0.0002,2]
[391500594,1760622681053,-500.0,0.0002,2]
[391500595,1760622681063,-700.66,0.0002,2]
[391500596,1760622681073,-500.0,0.0002,2]
[391500597,1760622681083,-905.7,0.0002,2]
[391500598,1760622681095,-500.0,0.0002,2]
[391500599,1760622681105,-500.0,0.0002,2]
[391500600,1760622681115,-500.0,0.0002,2]
[391500601,1760622681125,-500.0,0.0002,2]
[391500602,1760622681136,-500.0,0.0002,2]
[391500603,1760622681146,-500.0,0.0002,2]
[391500604,1760622681156,-1302.07,0.0002,2]
[391500605,1760622681166,-915.64,0.0002,2]
[391500606,1760622681176,-1568.29,0.0002,2]
[391500607,1760622681186,-500.0,0.0002,2]
[391500608,1760622681200,-2292.1,0.0002,2]
[391500609,1760622681210,-500.0,0.0002,2]
[391500610,1760622681220,-838.03,0.0002,2]
[391500611,1760622681231,-500.0,0.0002,2]
[391500612,1760622681241,-1073.35,0.0002,2]
[391500613,1760622681252,-500.0,0.0002,2]
[391500614,1760622681262,-674.33,0.0002,2]
[391500615,1760622681272,-2276.65,0.0002,2]
[391500616,1760622681283,-2881.17,0.0002,2]
[391500617,1760622681294,-1969.14,0.0002,2]
[391500618,1760622681304,-500.0,0.0002,2]
[391500619,1760622681315,-506.8,0.0002,2]
[391500620,1760622681325,-2665.4,0.0002,2]
[391500621,1760622681335,-187.4,0.0002,2]
[391500622,1760622681346,-967.86,0.0002,2]
[391500623,1760622681356,-1306.72,0.0002,2]
[391500624,1760622681366,-500.0,0.0002,2]
[391500625,1760622681376,-500.0,0.0002,2]
[391500626,1760622681386,-1074.8,0.0002,2]
[391500627,1760622681402,-1964.95,0.0002,2]
[391500628,1760622681412,-970.11,0.0002,2]
[391500629,1760622681422,-1990.16,0.0002,2]
[391500630,1760622681432,-500.0,0.0002,2]
[391500631,1760622681445,-1301.53,0.0002,2]
[391500632,1760622681455,-500.0,0.0002,2]
[391500633,1760622681465,-553.82,0.0002,2]
[391500634,1760622681478,-4520.51,0.0002,2]
[391500635,1760622681488,-789.28,0.0002,2]
[391500636,1760622681498,-500.0,0.0002,2]
[391500637,1760622681508,-1501.14,0.0002,2]
[391500638,1760622681518,-1433.19,0.0002,2]
[391500639,1760622681528,-500.0,0.0002,2]
[391500640,1760622681538,-500.0,0.0002,2]
[391500641,1760622681548,-500.0,0.0002,2]
[391500642,1760622681558,-1539.59,0.0002,2]
[391500643,1760622681568,-4147.09,0.0002,2]
[391500644,1760622681579,-3973.53,0.0002,2]
[391500645,1760622681588,-500.0,0.0002,2]
[391500646,1760622681599,-1494.66,0.0002,2]
[391500647,1760622681608,-2404.78,0.0002,2]
[391500648,1760622681618,-2343.65,0.0002,2]
[391500649,1760622681628,-500.0,0.0002,2]
[391500650,1760622681638,-552.05,0.0002,2]
[391500651,1760622681648,-813.6,0.0002,2]
[391500652,1760622681658,-500.24845351,0.0002,2]
[391500653,1760622681668,-1946.37,0.0002,2]
[391500654,1760622681678,-500.0,0.0002,2]
[391500655,1760622681687,-923.47,0.0002,2]
[391500656,1760622681699,-500.0,0.0002,2]
[391500657,1760622681709,-1615.73,0.0002,2]
[391500658,1760622681719,-458.3,0.0002,2]
[391500659,1760622681728,-1206.47,0.0002,2]
[391500660,1760622681738,-500.0,0.0002,2]
[391500661,1760622681748,-585.21,0.0002,2]
[391500662,1760622681758,-931.93,0.0002,2]
[391500663,1760622681768,-895.83,0.0002,2]
[391500664,1760622681777,-500.0,0.0002,2]
[391500665,1760622681787,-500.0,0.0002,2]
[391500666,1760622681797,-2076.34,0.0002,2]
[391500667,1760622681807,-500.0,0.0002,2]
[391500668,1760622681817,-500.0,0.0002,2]
[391500669,1760622681827,-500.0,0.0002,2]
[391500670,1760622681837,-998.78,0.0002,2]
[391500671,1760622681848,-770.87,0.0002,2]
[391500672,1760622681858,-500.0,0.0002,2]
[391500673,1760622681868,-1934.39,0.0002,2]
[391500674,1760622681878,-655.11,0.0002,2]
[391500675,1760622681889,-1145.63,0.0002,2]
[391500676,1760622681899,-500.0,0.0002,2]
[391500677,1760622681911,-1115.42,0.0002,2]
[391500678,1760622681923,-3254.25,0.0002,2]
[391500679,1760622681933,-500.0,0.0002,2]
[391500680,1760622681944,-500.0,0.0002,2]
[391500681,1760622681956,-500.0,0.0002,2]
[391500682,1760622681966,-1942.01,0.0002,2]
[391500683,1760622681977,-602.64,0.0002,2]
[391500684,1760622681987,-4483.55,0.0002,2]
[391500685,1760622681997,-500.0,0.0002,2]
[391500686,1760622682008,-3073.36,0.0002,2]
[391500687,1760622682018,-500.0,0.0002,2]
[391500688,1760622682028,-661.48,0.0002,2]
[391500689,1760622682039,-500.0,0.0002,2]
[391500690,1760622682052,-937.11,0.0002,2]
[391500691,1760622682399,-500.0,0.0002,2]
[391500692,1760622682409,-566.92,0.0002,2]
[391500693,1760622682419,-876.18,0.0002,2]
[391500694,1760622682429,-500.0,0.0002,2]
[391500695,1760622682438,-654.09,0.0002,2]
[391500696,1760622682451,-832.28,0.0002,2]
[391500697,1760622682461,-1921.4,0.0002,2]
[391500698,1760622682470,-500.0,0.0002,2]
[391500699,1760622682479,-731.25,0.0002,2]
[391500700,1760622682488,-1177.21,0.0002,2]
[391500701,1760622682498,-500.0,0.0002,2]
[391500702,1760622682507,-873.86,0.0002,2]
[391500703,1760622682517,-2125.49,0.0002,2]
[391500704,1760622682527,-1799.59,0.0002,2]
[391500705,1760622682536,-3644.12,0.0002,2]
[391500706,1760622682546,-400.17967726,0.0002,2]
[391500707,1760622682556,-500.0,0.0002,2]
[391500708,1760622682566,-500.0,0.0002,2]
[391500709,1760622682576,-500.0,0.0002,2]
[391500710,1760622682586,-1041.56,0.0002,2]
[391500711,1760622682595,-2153.26,0.0002,2]
[391500712,1760622682605,-3366.53,0.0002,2]
[391500713,1760622682615,-991.73,0.0002,2]
[391500714,1760622682624,-4106.06,0.0002,2]
[391500715,1760622682633,-799.63,0.0002,2]
[391500716,1760622682643,-2809.6,0.0002,2]
[391500717,1760622682652,-859.2,0.0002,2]
[391500718,1760622682662,-294.87099228,0.0002,2]
[391500719,1760622682672,-500.0,0.0002,2]
[391500720,1760622682682,-2245.95,0.0002,2]
[391500721,1760622682691,-926.11,0.0002,2]
[391500722,1760622682706,-1053.06,0.0002,2]
[391500723,1760622682716,-500.0,0.0002,2]
[391500724,1760622682726,-1327.12,0.0002,2]
[391500725,1760622682735,-500.0,0.0002,2]
[391500726,1760622682745,-802.26,0.0002,2]
[391500727,1760622682755,-1517.37,0.0002,2]
[391500728,1760622682764,-500.0,0.0002,2]
[391500729,1760622682774,-1596.52,0.0002,2]
[391500730,1760622682784,-500.0,0.0002,2]
[391500731,1760622682795,-1575.19,0.0002,2]
[391500732,1760622682806,-500.0,0.0002,2]
[391500733,1760622682816,-1657.98,0.0002,2]
[391500734,1760622682827,-500.0,0.0002,2]
[391500735,1760622682837,-3608.83,0.0002,2]
[391500736,1760622682846,-960.16,0.0002,2]
[391500737,1760622682856,-1118.76,0.0002,2]
[391500738,1760622682867,-604.45436566,0.0002,2]
[391500739,1760622682877,-500.0,0.0002,2]
[391500740,1760622682886,-1813.38,0.0002,2]
[391500741,1760622682896,-2333.71,0.0002,2]
[391500742,1760622682907,-500.0,0.0002,2]
[391500743,1760622682916,-500.0,0.0002,2]
[391500744,1760622682926,-3382.66,0.0002,2]
[391500745,1760622682936,-500.0,0.0002,2]
[391500746,1760622682948,-730.04,0.0002,2]
[391500747,1760622682958,-865.92,0.0002,2]
[391500748,1760622682967,-1176.62,0.0002,2]
[391500749,1760622682977,-1015.09,0.0002,2]
[391500750,1760622682987,-500.0,0.0002,2]
[391500751,1760622682996,-500.0,0.0002,2]
[391500752,1760622683007,-2542.42,0.0002,2]
[391500753,1760622683016,-525.71,0.0002,2]
[391500754,1760622683027,-500.0,0.0002,2]
[391500755,1760622683037,-2207.96,0.0002,2]
[391500756,1760622683047,-982.33,0.0002,2]
[391500757,1760622683057,-3919.43,0.0002,2]
[391500758,1760622683066,-500.0,0.0002,2]
[391500759,1760622683076,-3890.18,0.0002,2]
[391500760,1760622683086,-500.0,0.0002,2]
[391500761,1760622683096,-616.54,0.0002,2]
[391500762,1760622683106,-2203.86,0.0002,2]
[391500763,1760622683115,-973.0,0.0002,2]
[391500764,1760622683126,-1501.38,0.0002,2]
[391500765,1760622683135,-1265.45,0.0002,2]
[391500766,1760622683145,-500.0,0.0002,2]
[391500767,1760622683155,-500.0,0.0002,2]
[391500768,1760622683165,-500.0,0.0002,2]
[391500769,1760622683175,-1001.84,0.0002,2]
[391500770,1760622683185,-393.57300561,0.0002,2]
[391500771,1760622683194,-500.0,0.0002,2]
[391500772,1760622683206,-2239.0,0.0002,2]
[391500773,1760622683216,-396.50272567,0.0002,2]
[391500774,1760622683226,-580.28,0.0002,2]
[391500775,1760622683235,-1102.89,0.0002,2]
[391500776,1760622683245,-500.0,0.0002,2]
[391500777,1760622683255,-500.0,0.0002,2]
[391500778,1760622683265,-500.0,0.0002,2]
[391500779,1760622683275,-500.0,0.0002,2]
[391500780,1760622683285,-1393.42,0.0002,2]
[391500781,1760622683295,-863.16,0.0002,2]
[391500782,1760622683305,-500.0,0.0002,2]
[391500783,1760622683315,-500.0,0.0002,2]
[391500784,1760622683325,-2914.66,0.0002,2]
[391500785,1760622683335,-500.0,0.0002,2]
[391500786,1760622683344,-1907.03,0.0002,2]
[391500787,1760622683355,-500.0,0.0002,2]
[391500788,1760622683366,-3962.63,0.0002,2]
[391500789,1760622683375,-3050.44,0.0002,2]
[391500790,1760622683385,-665.52,0.0002,2]
[391500791,1760622683397,-3646.21,0.0002,2]
[391500792,1760622683407,-1377.99,0.0002,2]
[391500793,1760622683416,-500.0,0.0002,2]
[391500794,1760622683426,-1649.64,0.0002,2]
[391500795,1760622683436,-1125.52,0.0002,2]
[391500796,1760622683446,-500.0,0.0002,2]
[391500797,1760622683457,-1270.83,0.0002,2]
[391500798,1760622683468,-500.0,0.0002,2]
[391500799,1760622683478,-500.0,0.0002,2]
[391500800,1760622683488,-1295.91,0.0002,2]
[391500801,1760622683497,-2613.51,0.0002,2]
[391500802,1760622683508,-500.0,0.0002,2]
[391500803,1760622683518,-500.0,0.0002,2]
[391500804,1760622683527,-2693.18,0.0002,2]
[391500805,1760622683537,-2308.59,0.0002,2]
[391500806,1760622683547,-500.0,0.0002,2]
[391500807,1760622683558,-1006.5,0.0002,2]
[391500808,1760622683567,-3852.7,0.0002,2]
[391500809,1760622683577,-1144.14,0.0002,2]
[391500810,1760622683586,-595.19,0.0002,2]
[391500811,1760622683596,-736.36,0.0002,2]
[391500812,1760622683605,-1495.4,0.0002,2]
[391500813,1760622683614,-1726.4,0.0002,2]
[391500814,1760622683624,-500.0,0.0002,2]
[391500815,1760622683633,-2609.0,0.0002,2]
[391500816,1760622683642,-2176.39,0.0002,2]
[391500817,1760622683652,-3637.33,0.0002,2]
[391500818,1760622683662,-3431.1,0.0002,2]
[391500819,1760622683671,-716.71,0.0002,2]
[391500820,1760622683680,-500.0,0.0002,2]
[391500821,1760622683690,-500.0,0.0002,2]
[391500822,1760622683701,-3541.61,0.0002,2]
[391500823,1760622683710,-519.95613077,0.0002,2]
[391500824,1760622683720,-652.45,0.0002,2]
[391500825,1760622683729,-500.0,0.0002,2]
[391500826,1760622683738,-341.35,0.0002,2]
[391500827,1760622683747,-1338.28,0.0002,2]
[391500828,1760622683757,-4665.68,0.0002,2]
[391500829,1760622683767,-500.0,0.0002,2]
[391500830,1760622683776,-561.57,0.0002,2]
[391500831,1760622683786,-500.0,0.0002,2]
[391500832,1760622683795,-500.0,0.0002,2]
[391500833,1760622683806,-619.28,0.0002,2]
[391500834,1760622683816,-5653.56,0.0002,2]
[391500835,1760622683826,-500.0,0.0002,2]
[391500836,1760622683835,-845.06,0.0002,2]
[391500837,1760622683845,-500.0,0.0002,2]
[391500838,1760622683854,-3763.12,0.0002,2]
[391500839,1760622683864,-2837.34,0.0002,2]
[391500840,1760622683874,-500.0,0.0002,2]
[391500841,1760622683883,-2858.38,0.0002,2]
[391500842,1760622683893,-500.0,0.0002,2]
[391500843,1760622683903,-944.75,0.0002,2]
[391500844,1760622683912,-810.15,0.0002,2]
[391500845,1760622683922,-500.0,0.0002,2]
[391500846,1760622683931,-500.0,0.0002,2]
[391500847,1760622683941,-500.0,0.0002,2]
[391500848,1760622683953,-500.0,0.0002,2]
[391500849,1760622683963,-500.0,0.0002,2]
[391500850,1760622683973,-500.0,0.0002,2]
[391500851,1760622683982,-835.24,0.0002,2]
[391500852,1760622683991,-500.0,0.0002,2]
[391500853,1760622684001,-1064.67,0.0002,2]
[391500854,1760622684011,-500.0,0.0002,2]
[391500855,1760622684021,-500.0,0.0002,2]
[391500856,1760622684031,-1691.83,0.0002,2]
[391500857,1760622684040,-500.0,0.0002,2]
[391500858,1760622684050,-975.18,0.0002,2]
[391500859,1760622684059,-500.0,0.0002,2]
[391500860,1760622684069,-5349.05,0.0002,2]
[391500861,1760622684078,-1522.14,0.0002,2]
[391500862,1760622684088,-2953.64,0.0002,2]
[391500863,1760622684097,-500.0,0.0002,2]
[391500864,1760622684107,-546.04,0.0002,2]
[391500865,1760622684116,-1065.02,0.0002,2]
[391500866,1760622684126,-500.0,0.0002,2]
[391500867,1760622684136,-742.82,0.0002,2]
[391500868,1760622684146,-643.48,0.0002,2]
[391500869,1760622684156,-560.31,0.0002,2]
[391500870,1760622684166,-500.0,0.0002,2]
[391500871,1760622684176,-500.0,0.0002,2]
[391500872,1760622684186,-1177.48,0.0002,2]
[391500873,1760622684197,-612.5,0.0002,2]
[391500874,1760622684207,-1307.69,0.0002,2]
[391500875,1760622684217,-994.54,0.0002,2]
[391500876,1760622684227,-500.0,0.0002,2]
[391500877,1760622684237,-3001.3,0.0002,2]
[391500878,1760622684247,-500.0,0.0002,2]
[391500879,1760622684256,-500.0,0.0002,2]
[391500880,1760622684266,-996.75,0.0002,2]
[391500881,1760622684276,-1167.79,0.0002,2]
[391500882,1760622684285,-1010.67,0.0002,2]
[391500883,1760622684294,-2035.98,0.0002,2]
[391500884,1760622684304,-7042.08,0.0002,2]
[391500885,1760622684314,-555.32,0.0002,2]
[391500886,1760622684324,-500.0,0.0002,2]
[391500887,1760622684334,-500.0,0.0002,2]
[391500888,1760622684344,-1723.96,0.0002,2]
[391500889,1760622684353,-1382.06,0.0002,2]
[391500890,1760622684363,-846.21,0.0002,2]
[391500891,1760622684372,-500.0,0.0002,2]
[391500892,1760622684382,-500.0,0.0002,2]
[391500893,1760622684392,-2053.41,0.0002,2]
[391500894,1760622684403,-500.0,0.0002,2]
[391500895,1760622684412,-957.32,0.0002,2]
[391500896,1760622684422,-2286.06,0.0002,2]
[391500897,1760622684431,-500.0,0.0002,2]
[391500898,1760622684440,-500.0,0.0002,2]
[391500899,1760622684452,-3202.21,0.0002,2]
[391500900,1760622684462,-500.0,0.0002,2]
[391500901,1760622684473,-1094.59,0.0002,2]
[391500902,1760622684485,-500.0,0.0002,2]
[391500903,1760622684495,-500.0,0.0002,2]
[391500904,1760622684504,-500.0,0.0002,2]
[391500905,1760622684514,-2441.62,0.0002,2]
[391500906,1760622684524,-2067.48,0.0002,2]
[391500907,1760622684533,-1557.59,0.0002,2]
[391500908,1760622684546,-5120.75,0.0002,2]
[391500909,1760622684558,-1032.54,0.0002,2]
[391500910,1760622684568,-500.0,0.0002,2]
[391500911,1760622684577,-500.0,0.0002,2]
[391500912,1760622684585,-1085.75,0.0002,2]
[391500913,1760622684595,-500.0,0.0002,2]
[391500914,1760622684604,-500.0,0.0002,2]
[391500915,1760622684613,-799.51,0.0002,2]
[391500916,1760622684623,-2377.73,0.0002,2]
[391500917,1760622684633,-500.0,0.0002,2]
[391500918,1760622684643,-500.0,0.0002,2]
[391500919,1760622684654,-1518.24,0.0002,2]
[391500920,1760622684663,-6043.11,0.0002,2]
[391500921,1760622684672,-633.86,0.0002,2]
[391500922,1760622684682,-870.49,0.0002,2]
[391500923,1760622684692,-1626.83,0.0002,2]
[391500924,1760622684704,-1673.55,0.0002,2]
[391500925,1760622684713,-500.0,0.0002,2]
[391500926,1760622684723,-500.0,0.0002,2]
[391500927,1760622684732,-5246.08,0.0002,2]
[391500928,1760622684741,-6277.5,0.0002,2]
[391500929,1760622684842,-1218.26,0.0002,2]
[391500930,1760622684852,-2661.81,0.0002,2]
[391500931,1760622684861,-500.0,0.0002,2]
[391500932,1760622684871,-395.92838355,0.0002,2]
[391500933,1760622684880,-3314.07,0.0002,2]
[391500934,1760622684889,-4596.02,0.0002,2]
[391500935,1760622684899,-2563.11,0.0002,2]
[391500936,1760622684908,-2017.4,0.0002,2]
[391500937,1760622684917,-3489.13,0.0002,2]
[391500938,1760622684926,-1475.14,0.0002,2]
[391500939,1760622684935,-500.0,0.0002,2]
[391500940,1760622684944,-500.0,0.0002,2]
[391500941,1760622684955,-500.0,0.0002,2]
[391500942,1760622684964,-3195.30797026,0.0002,2]
[391500943,1760622685789,-500.0,0.00019178,2]
[391500944,1760622685798,-717.4,0.0002,2]
[391500945,1760622685810,-278.80202974,0.0002,2]
[391500946,1760622685819,-562.66,0.0002,2]
[391500947,1760622685828,-3166.67,0.0002,2]
[391500948,1760622685837,-1494.00952616,0.0002,2]
[391500949,1760622686583,-150.0,0.0001885,2]
[391500950,1760622686593,-295.07838,0.00019178,2]
[391500951,1760622686604,-252.66162,0.00019178,2]
[391500952,1760622686614,-510.39,0.00019178,2]
[391500953,1760622686623,-150.0,0.00019178,2]
[391500954,1760622686632,-1077.58,0.00019178,2]
[391500955,1760622686642,-500.0,0.00019178,2]
[391500956,1760622686651,-1120.527517,0.00019178,2]
[391500957,1760622686661,-45.1711522,0.00019178,2]
[391500958,1760622687033,-1.6e-07,0.00019178,2]
[391500959,1760622688031,-423.95581672,0.00019178,2]
[391500960,1760622688053,-651.40054792,0.00019178,2]
[391500961,1760622688063,-122.93388596,0.00019178,2]
[391500962,1760622688109,-361.44339744,0.00019178,2]
[391500963,1760622688121,-577.49691996,0.00019178,2]
[391500964,1760622688138,-58.65331364,0.00019178,2]
[391500965,1760622688150,-1120.527517,0.00019178,2]
[391500966,1760622688160,-500.0,0.00019178,2]
[391500967,1760622688171,-500.0,0.00019178,2]
[391500968,1760622688181,-500.0,0.00019178,2]
[391500969,1760622688191,-1120.527517,0.00019178,2]
[391500970,1760622688203,-1120.527517,0.00019178,2]
[391500971,1760622688213,-500.0,0.00019178,2]
[391500972,1760622688223,-1120.527517,0.00019178,2]
[391500973,1760622688232,-1120.527517,0.00019178,2]
[391500974,1760622688243,-3313.65,0.00019178,2]
[391500975,1760622688252,-1120.527517,0.00019178,2]
[391500976,1760622688262,-150.0,0.00019178,2]
[391500977,1760622688272,-1120.527517,0.00019178,2]
[391500978,1760622688283,-150.0,0.00019233,2]
[391500979,1760622688294,-500.0,0.00019233,2]
[391500980,1760622688304,-150.0,0.00019233,2]
[391500981,1760622688315,-150.0,0.00019288,2]
[391500982,1760622688325,-154.0,0.00019288,2]
[391500983,1760622688335,-150.0,0.00019342,2]
[391500984,1760622688345,-150.0,0.00019397,2]
[391500985,1760622688356,-152.10861854,0.00019452,2]
[391500986,1760622688366,-500.0,0.00019452,2]
[391500987,1760622688376,-547.74,0.00019452,2]
[391500988,1760622688386,-510.39,0.00019452,2]
[391500989,1760622688400,-1077.58,0.00019452,2]
[391500990,1760622688411,-500.0,0.00019452,2]
[391500991,1760622688421,-500.0,0.00019452,2]
[391500992,1760622688431,-500.0,0.00019452,2]
[391500993,1760622688441,-500.0,0.00019452,2]
[391500994,1760622688454,-3313.65,0.00019452,2]
[391500995,1760622688464,-500.0,0.00019726,2]
[391500996,1760622688475,-547.74,0.00019726,2]
[391500997,1760622688485,-510.39,0.00019726,2]
[391500998,1760622688494,-1077.58,0.00019726,2]
[391500999,1760622688505,-500.0,0.00019726,2]
[391501000,1760622688515,-500.0,0.00019726,2]
[391501001,1760622688525,-500.0,0.00019726,2]
[391501002,1760622688535,-500.0,0.00019726,2]
[391501003,1760622688546,-2271.40047384,0.0002,2]
[391501004,1760622688556,-552.22,0.0002,2]
[391501005,1760622688566,-500.0,0.0002,2]
[391501006,1760622688576,-676.82,0.0002,2]
[391501007,1760622688586,-500.0,0.0002,2]
[391501008,1760622688595,-628.67,0.0002,2]
[391501009,1760622688605,-500.0,0.0002,2]
[391501010,1760622688615,-241.53217986,0.0002,2]
[391501011,1760622688624,-899.94,0.0002,2]
[391501012,1760622688634,-1269.61,0.0002,2]
[391501013,1760622688644,-2859.32,0.0002,2]
[391501014,1760622688653,-1471.16,0.0002,2]
[391501015,1760622688663,-942.15,0.0002,2]
[391501016,1760622688673,-644.81,0.0002,2]
[391501017,1760622688682,-1681.37,0.0002,2]
[391501018,1760622688693,-3745.82,0.0002,2]
[391501019,1760622688705,-1947.13,0.0002,2]
[391501020,1760622688714,-1437.52,0.0002,2]
[391501021,1760622688724,-743.12,0.0002,2]
[391501022,1760622688735,-668.28,0.0002,2]
[391501023,1760622688744,-641.85,0.0002,2]
[391501024,1760622688755,-1519.38,0.0002,2]
[391501025,1760622688766,-419.88845697,0.0002,2]
[391501026,1760622688776,-519.49,0.0002,2]
[391501027,1760622688786,-500.0,0.0002,2]
[391501028,1760622688796,-500.0,0.0002,2]
[391501029,1760622688806,-1134.95,0.0002,2]
[391501030,1760622688815,-4241.91,0.0002,2]